[Event "*** MasterClass Titled Tuesday Blitz"]
[Site "Chess.com"]
[Date "2017.12.05"]
[Round "1"]
[White "VeryAnonymousPatzer"]
[Black "livestrong04"]
[Result "0-1"]
[WhiteElo "1119"]
[BlackElo "2364"]
[TimeControl "180+2"]
[EndTime "14:21:58 PST"]
[Termination "livestrong04 won by checkmate"]

1. e4 {[%clk 0:02:59.7]} 1... d5 {[%clk 0:02:59.1]} 2. exd5 {[%clk 0:02:54.9]}
2... c6 {[%clk 0:02:59.1]} 3. d4 {[%clk 0:02:54.2]} 3... Nf6 {[%clk 0:02:58.4]}
4. Nc3 {[%clk 0:02:53.7]} 4... cxd5 {[%clk 0:02:57.2]} 5. Bb5+ {[%clk 0:02:53]}
5... Nc6 {[%clk 0:02:58.7]} 6. Bf4 {[%clk 0:02:52.4]} 6... Bg4 {[%clk
0:02:58.4]} 7. Nge2 {[%clk 0:02:46.5]} 7... e6 {[%clk 0:02:57.6]} 8. O-O {[%clk
0:02:45.8]} 8... Bd6 {[%clk 0:02:58.2]} 9. Bg3 {[%clk 0:02:44.7]} 9... O-O
{[%clk 0:02:58.1]} 10. h3 {[%clk 0:02:43.6]} 10... Bh5 {[%clk 0:02:58.2]} 11.
Qd2 {[%clk 0:02:29.4]} 11... Rc8 {[%clk 0:02:53.9]} 12. Nf4 {[%clk 0:02:23.6]}
12... Bxf4 {[%clk 0:02:52.9]} 13. Qxf4 {[%clk 0:02:18.7]} 13... Ne7 {[%clk
0:02:53.7]} 14. Bh4 {[%clk 0:02:14.1]} 14... Ng6 {[%clk 0:02:52.3]} 15. Qg5
{[%clk 0:02:09.7]} 15... h6 {[%clk 0:02:50.1]} 16. Qxh5 {[%clk 0:02:04.8]} 16...
Nxh5 {[%clk 0:02:50.2]} 17. Bxd8 {[%clk 0:02:06]} 17... Rfxd8 {[%clk 0:02:51.8]}
18. Bd3 {[%clk 0:02:03.1]} 18... Ngf4 {[%clk 0:02:51.6]} 19. Rad1 {[%clk
0:02:01.1]} 19... Nf6 {[%clk 0:02:51.3]} 20. Rfe1 {[%clk 0:01:57]} 20... Nxd3
{[%clk 0:02:50.9]} 21. Rxd3 {[%clk 0:01:57]} 21... b5 {[%clk 0:02:49.8]} 22.
Nxb5 {[%clk 0:01:52.7]} 22... Rxc2 {[%clk 0:02:49]} 23. Nxa7 {[%clk 0:01:52.7]}
23... Rxb2 {[%clk 0:02:49.6]} 24. Ra3 {[%clk 0:01:51.7]} 24... Ne4 {[%clk
0:02:49]} 25. Nc6 {[%clk 0:01:49.4]} 25... Rd6 {[%clk 0:02:47]} 26. Ne5 {[%clk
0:01:45.9]} 26... f6 {[%clk 0:02:42]} 27. Nf3 {[%clk 0:01:44.1]} 27... Nxf2
{[%clk 0:02:41.4]} 28. Rf1 {[%clk 0:01:28.9]} 28... Ne4 {[%clk 0:02:39]} 29. Ra1
{[%clk 0:01:22.4]} 29... Rc6 {[%clk 0:02:39.9]} 30. Rb3 {[%clk 0:01:16.1]} 30...
Re2 {[%clk 0:02:38.8]} 31. a4 {[%clk 0:01:11.8]} 31... Rcc2 {[%clk 0:02:37.4]}
32. Ne1 {[%clk 0:01:06.9]} 32... Ra2 {[%clk 0:02:31.7]} 33. Ra3 {[%clk
0:01:02.2]} 33... Rxe1+ {[%clk 0:02:29.8]} 34. Rxe1 {[%clk 0:00:56.6]} 34...
Rxa3 {[%clk 0:02:29.6]} 35. Kf1 {[%clk 0:00:54.4]} 35... Rxa4 {[%clk 0:02:29.3]}
36. Rd1 {[%clk 0:00:54.4]} 36... Kf7 {[%clk 0:02:30.5]} 37. Rd3 {[%clk
0:00:53.1]} 37... Kg6 {[%clk 0:02:32.4]} 38. Rf3 {[%clk 0:00:51.8]} 38... Rc4
{[%clk 0:02:34.3]} 39. Rd3 {[%clk 0:00:51.8]} 39... f5 {[%clk 0:02:36.2]} 40.
Ke2 {[%clk 0:00:51.3]} 40... Kf6 {[%clk 0:02:38.1]} 41. Ke3 {[%clk 0:00:51.2]}
41... g5 {[%clk 0:02:40]} 42. Kf3 {[%clk 0:00:50]} 42... f4 {[%clk 0:02:41.9]}
43. Kg4 {[%clk 0:00:49.6]} 43... Kg6 {[%clk 0:02:43.8]} 44. Rd1 {[%clk
0:00:46.8]} 44... h5+ {[%clk 0:02:45.7]} 45. Kf3 {[%clk 0:00:46.8]} 45... Kf5
{[%clk 0:02:47.6]} 46. Rd3 {[%clk 0:00:47.2]} 46... g4+ {[%clk 0:02:49.3]} 47.
hxg4+ {[%clk 0:00:45.6]} 47... hxg4+ {[%clk 0:02:50.3]} 48. Ke2 {[%clk
0:00:46.5]} 48... Rc2+ {[%clk 0:02:50.9]} 49. Ke1 {[%clk 0:00:43.1]} 49... g3
{[%clk 0:02:50.1]} 50. Kd1 {[%clk 0:00:39.7]} 50... Rxg2 {[%clk 0:02:49.5]} 51.
Rf3 {[%clk 0:00:39.3]} 51... Rf2 {[%clk 0:02:51.4]} 52. Rxf2 {[%clk 0:00:37.8]}
52... Nxf2+ {[%clk 0:02:51.6]} 53. Ke2 {[%clk 0:00:37.6]} 53... Ne4 {[%clk
0:02:53.5]} 54. Kf3 {[%clk 0:00:37.9]} 54... Ng5+ {[%clk 0:02:53.6]} 55. Kg2
{[%clk 0:00:36.5]} 55... Kg4 {[%clk 0:02:55.5]} 56. Kg1 {[%clk 0:00:34.5]} 56...
f3 {[%clk 0:02:57.4]} 57. Kf1 {[%clk 0:00:35.4]} 57... Kh3 {[%clk 0:02:59.3]}
58. Kg1 {[%clk 0:00:33.6]} 58... Ne4 {[%clk 0:03:01.2]} 59. Kf1 {[%clk
0:00:34.6]} 59... Nd2+ {[%clk 0:03:02.3]} 60. Kg1 {[%clk 0:00:36.4]} 60... f2+
{[%clk 0:03:03.2]} 61. Kh1 {[%clk 0:00:36.1]} 61... g2# {[%clk 0:03:05.1]} 0-1

[Event "*** MasterClass Titled Tuesday Blitz"]
[Site "Chess.com"]
[Date "2017.12.05"]
[Round "1"]
[White "otreborosnola"]
[Black "SharkAnto55"]
[Result "0-1"]
[WhiteElo "1002"]
[BlackElo "2353"]
[TimeControl "180+2"]
[EndTime "14:22:02 PST"]
[Termination "SharkAnto55 won on time"]

1. e4 {[%clk 0:03:00]} 1... c5 {[%clk 0:03:00.8]} 2. Bc4 {[%clk 0:03:00.4]} 2...
e6 {[%clk 0:03:00.9]} 3. d3 {[%clk 0:03:00]} 3... Nc6 {[%clk 0:03:02.8]} 4. Nf3
{[%clk 0:03:00.4]} 4... Nf6 {[%clk 0:03:03.7]} 5. Nc3 {[%clk 0:03:00]} 5... Be7
{[%clk 0:03:03.8]} 6. Bg5 {[%clk 0:02:51.6]} 6... d6 {[%clk 0:03:03.1]} 7. O-O
{[%clk 0:02:51]} 7... a6 {[%clk 0:03:01.9]} 8. a3 {[%clk 0:02:50.5]} 8... b5
{[%clk 0:03:00.6]} 9. Bb3 {[%clk 0:02:47.5]} 9... Bb7 {[%clk 0:03:02.5]} 10. h3
{[%clk 0:02:37.2]} 10... h6 {[%clk 0:03:00.9]} 11. Bf4 {[%clk 0:02:34.2]} 11...
Qc7 {[%clk 0:02:54.1]} 12. e5 {[%clk 0:02:18.3]} 12... Nxe5 {[%clk 0:02:52.8]}
13. Nxe5 {[%clk 0:02:14.9]} 13... dxe5 {[%clk 0:02:53.7]} 14. Bg3 {[%clk
0:02:13]} 14... Qc6 {[%clk 0:02:43.2]} 15. f3 {[%clk 0:01:59.4]} 15... Nd7
{[%clk 0:02:37.4]} 16. Qe2 {[%clk 0:01:50.9]} 16... f6 {[%clk 0:02:29]} 17. f4
{[%clk 0:01:36.8]} 17... exf4 {[%clk 0:02:28.9]} 18. Bxf4 {[%clk 0:01:32.7]}
18... e5 {[%clk 0:02:22.2]} 19. Bg3 {[%clk 0:01:31.6]} 19... Nb6 {[%clk
0:02:14.9]} 20. Ne4 {[%clk 0:01:27.4]} 20... c4 {[%clk 0:02:07.9]} 21. dxc4
{[%clk 0:01:17.3]} 21... Qxe4 {[%clk 0:02:08.3]} 22. Qxe4 {[%clk 0:01:10.2]}
22... Bxe4 {[%clk 0:02:10.2]} 23. cxb5 {[%clk 0:01:06]} 23... axb5 {[%clk
0:02:12.1]} 24. Bf2 {[%clk 0:00:47.4]} 24... Nc4 {[%clk 0:02:05.4]} 25. a4
{[%clk 0:00:35.7]} 25... Nd2 {[%clk 0:02:06]} 26. Rfe1 {[%clk 0:00:25.1]} 26...
Nxb3 {[%clk 0:02:02.3]} 27. cxb3 {[%clk 0:00:25]} 27... Bc6 {[%clk 0:02:00.3]}
28. Re3 {[%clk 0:00:14.8]} 28... bxa4 {[%clk 0:01:55.2]} 29. bxa4 {[%clk
0:00:12.2]} 29... Rxa4 {[%clk 0:01:56.7]} 30. Rc1 {[%clk 0:00:10.1]} 30... Bd7
{[%clk 0:01:54.9]} 31. Rc7 {[%clk 0:00:05]} 31... Bd6 {[%clk 0:01:54]} 0-1

[Event "*** MasterClass Titled Tuesday Blitz"]
[Site "Chess.com"]
[Date "2017.12.05"]
[Round "1"]
[White "PivixBanni"]
[Black "kikydu96"]
[Result "0-1"]
[WhiteElo "1161"]
[BlackElo "2373"]
[TimeControl "180+2"]
[EndTime "14:22:06 PST"]
[Termination "kikydu96 won by checkmate"]

1. d4 {[%clk 0:02:59.5]} 1... d5 {[%clk 0:02:49.1]} 2. c4 {[%clk 0:02:59.8]}
2... c6 {[%clk 0:02:38.8]} 3. Nc3 {[%clk 0:02:56.2]} 3... Nf6 {[%clk 0:02:37.8]}
4. Nf3 {[%clk 0:02:56.3]} 4... dxc4 {[%clk 0:02:35.4]} 5. a4 {[%clk 0:02:54.4]}
5... Bf5 {[%clk 0:02:35.3]} 6. e3 {[%clk 0:02:52.2]} 6... e6 {[%clk 0:02:36.2]}
7. Bxc4 {[%clk 0:02:52.3]} 7... Bb4 {[%clk 0:02:37.2]} 8. O-O {[%clk 0:02:50]}
8... Nbd7 {[%clk 0:02:34.1]} 9. Re1 {[%clk 0:02:44.9]} 9... O-O {[%clk
0:02:33.1]} 10. Bd2 {[%clk 0:02:27.1]} 10... Qe7 {[%clk 0:02:31.9]} 11. Qe2
{[%clk 0:02:24.5]} 11... a5 {[%clk 0:02:32.6]} 12. Bd3 {[%clk 0:02:17.4]} 12...
Bxd3 {[%clk 0:02:31.1]} 13. Qxd3 {[%clk 0:02:19.3]} 13... e5 {[%clk 0:02:32.7]}
14. dxe5 {[%clk 0:02:11.4]} 14... Nxe5 {[%clk 0:02:34.6]} 15. Nxe5 {[%clk
0:02:10.9]} 15... Qxe5 {[%clk 0:02:35.3]} 16. Rac1 {[%clk 0:02:06.5]} 16... Ng4
{[%clk 0:02:32.8]} 17. g3 {[%clk 0:01:58.7]} 17... Qh5 {[%clk 0:02:29.5]} 18. h4
{[%clk 0:01:58.2]} 18... Ne5 {[%clk 0:02:28.8]} 19. Qe2 {[%clk 0:01:50.8]} 19...
Nf3+ {[%clk 0:02:29.8]} 20. Kf1 {[%clk 0:01:48.6]} 20... Qg4 {[%clk 0:02:29.7]}
21. Kg2 {[%clk 0:01:33.7]} 21... Nxh4+ {[%clk 0:02:29.7]} 22. Kg1 {[%clk
0:01:30.9]} 22... Nf3+ {[%clk 0:02:29.3]} 23. Kg2 {[%clk 0:01:30.2]} 23... Nxe1+
{[%clk 0:02:21.6]} 24. Rxe1 {[%clk 0:01:26.5]} 24... Qxe2 {[%clk 0:02:21.7]} 25.
Rxe2 {[%clk 0:01:28.4]} 25... Rad8 {[%clk 0:02:16.3]} 26. Be1 {[%clk 0:01:24.1]}
26... Rfe8 {[%clk 0:02:15]} 27. Kf1 {[%clk 0:01:14.3]} 27... Bxc3 {[%clk
0:02:14]} 28. Bxc3 {[%clk 0:01:15.3]} 28... Re4 {[%clk 0:02:14.5]} 29. f3 {[%clk
0:01:07.2]} 29... Rxa4 {[%clk 0:02:14.6]} 30. Kf2 {[%clk 0:01:03.6]} 30... b5
{[%clk 0:02:11.2]} 31. Bd4 {[%clk 0:00:58.1]} 31... Rc4 {[%clk 0:02:09.4]} 32.
Bb6 {[%clk 0:00:53.9]} 32... Ra8 {[%clk 0:02:10.1]} 33. Rd2 {[%clk 0:00:53.6]}
33... a4 {[%clk 0:02:10.4]} 34. Ba5 {[%clk 0:00:53]} 34... h6 {[%clk 0:02:10.8]}
35. Bc3 {[%clk 0:00:52.5]} 35... b4 {[%clk 0:02:11.2]} 36. Bd4 {[%clk
0:00:52.9]} 36... c5 {[%clk 0:02:12.3]} 37. Be5 {[%clk 0:00:50.9]} 37... a3
{[%clk 0:02:13.5]} 38. bxa3 {[%clk 0:00:51.4]} 38... bxa3 {[%clk 0:02:13.9]} 39.
Ra2 {[%clk 0:00:48.6]} 39... f6 {[%clk 0:02:11.8]} 40. Bd6 {[%clk 0:00:48.4]}
40... Rb4 {[%clk 0:02:11.7]} 41. Bxc5 {[%clk 0:00:48.1]} 41... Rb2+ {[%clk
0:02:12.7]} 42. Rxb2 {[%clk 0:00:45.2]} 42... axb2 {[%clk 0:02:14.6]} 43. Bd4
{[%clk 0:00:42.6]} 43... b1=Q {[%clk 0:02:14.7]} 44. Kg2 {[%clk 0:00:44.5]}
44... f5 {[%clk 0:02:11]} 45. g4 {[%clk 0:00:43.1]} 45... g5 {[%clk 0:02:10.2]}
46. gxf5 {[%clk 0:00:43.1]} 46... h5 {[%clk 0:02:11]} 47. Kg3 {[%clk 0:00:36.4]}
47... Qg1+ {[%clk 0:02:09.9]} 48. Kh3 {[%clk 0:00:37.9]} 48... Ra2 {[%clk
0:02:08.1]} 49. Be5 {[%clk 0:00:35.7]} 49... Qg2# {[%clk 0:02:06.3]} 0-1

[Event "*** MasterClass Titled Tuesday Blitz"]
[Site "Chess.com"]
[Date "2017.12.05"]
[Round "1"]
[White "TARS-JJ"]
[Black "B-man"]
[Result "0-1"]
[WhiteElo "1080"]
[BlackElo "2360"]
[TimeControl "180+2"]
[EndTime "14:22:07 PST"]
[Termination "B-man won by checkmate"]

1. e4 {[%clk 0:03:00]} 1... c5 {[%clk 0:01:31.2]} 2. Nc3 {[%clk 0:02:56.8]} 2...
e6 {[%clk 0:01:22.6]} 3. f4 {[%clk 0:02:16.3]} 3... a6 {[%clk 0:01:24.4]} 4. Nf3
{[%clk 0:02:14.1]} 4... b5 {[%clk 0:01:24.2]} 5. d4 {[%clk 0:02:11.9]} 5... cxd4
{[%clk 0:01:24.7]} 6. Qxd4 {[%clk 0:02:10.8]} 6... Bb7 {[%clk 0:01:24.2]} 7. Bd3
{[%clk 0:02:10.2]} 7... Nc6 {[%clk 0:01:18.1]} 8. Qe3 {[%clk 0:01:59.4]} 8...
Nf6 {[%clk 0:01:15.2]} 9. Bd2 {[%clk 0:01:59.3]} 9... Rc8 {[%clk 0:00:55.5]} 10.
O-O-O {[%clk 0:01:56.4]} 10... Nb4 {[%clk 0:00:54]} 11. Kb1 {[%clk 0:01:52.6]}
11... d5 {[%clk 0:00:48.2]} 12. exd5 {[%clk 0:01:50.7]} 12... Nfxd5 {[%clk
0:00:50.1]} 13. Nxd5 {[%clk 0:01:50.4]} 13... Nxd5 {[%clk 0:00:51.8]} 14. Qd4
{[%clk 0:01:49.5]} 14... Qf6 {[%clk 0:00:38.2]} 15. Qxf6 {[%clk 0:01:49.7]}
15... gxf6 {[%clk 0:00:35]} 16. Be4 {[%clk 0:01:50.2]} 16... f5 {[%clk
0:00:32.6]} 17. Bxd5 {[%clk 0:01:50.8]} 17... Bxd5 {[%clk 0:00:34.5]} 18. Rhe1
{[%clk 0:01:49]} 18... Rg8 {[%clk 0:00:30]} 19. h3 {[%clk 0:01:45.7]} 19... Be4
{[%clk 0:00:29.8]} 20. Rc1 {[%clk 0:01:36.1]} 20... Rxg2 {[%clk 0:00:30.2]} 21.
Nh4 {[%clk 0:01:33.3]} 21... Rxd2 {[%clk 0:00:30]} 22. Ka1 {[%clk 0:01:23.9]}
22... Be7 {[%clk 0:00:27.3]} 23. Red1 {[%clk 0:01:13.7]} 23... Rxd1 {[%clk
0:00:23.4]} 24. Rxd1 {[%clk 0:01:14.8]} 24... Rxc2 {[%clk 0:00:22.5]} 25. Rg1
{[%clk 0:01:11.2]} 25... Bxh4 {[%clk 0:00:22.7]} 26. a3 {[%clk 0:01:11.2]} 26...
Bf6 {[%clk 0:00:22.6]} 27. Rg8+ {[%clk 0:01:02.8]} 27... Ke7 {[%clk 0:00:23.1]}
28. Ka2 {[%clk 0:00:57.2]} 28... Rxb2+ {[%clk 0:00:24]} 29. Ka1 {[%clk
0:00:57.4]} 29... Rg2# {[%clk 0:00:23.4]} 0-1

[Event "*** MasterClass Titled Tuesday Blitz"]
[Site "Chess.com"]
[Date "2017.12.05"]
[Round "1"]
[White "Rikikits"]
[Black "ZalupiNputiN"]
[Result "1-0"]
[WhiteElo "2525"]
[BlackElo "2066"]
[TimeControl "180+2"]
[EndTime "14:22:09 PST"]
[Termination "Rikikits won by checkmate"]

1. e4 {[%clk 0:03:01.9]} 1... c5 {[%clk 0:03:00.7]} 2. Nc3 {[%clk 0:03:01.2]}
2... g6 {[%clk 0:02:59.4]} 3. Bc4 {[%clk 0:03:01.4]} 3... e6 {[%clk 0:02:59.5]}
4. f4 {[%clk 0:03:02]} 4... a6 {[%clk 0:02:59.5]} 5. a3 {[%clk 0:03:00.9]} 5...
Ne7 {[%clk 0:03:00]} 6. Nf3 {[%clk 0:03:00.9]} 6... Bg7 {[%clk 0:03:00.9]} 7.
Ba2 {[%clk 0:02:59.2]} 7... Nbc6 {[%clk 0:03:01]} 8. O-O {[%clk 0:03:00.4]} 8...
Nd4 {[%clk 0:03:02.1]} 9. d3 {[%clk 0:02:59.1]} 9... b5 {[%clk 0:02:59.8]} 10.
Nxd4 {[%clk 0:02:59.2]} 10... Bxd4+ {[%clk 0:03:00.5]} 11. Kh1 {[%clk 0:03:00]}
11... h5 {[%clk 0:03:00.6]} 12. Qe2 {[%clk 0:02:57.5]} 12... Bb7 {[%clk
0:02:59.3]} 13. Be3 {[%clk 0:02:58.7]} 13... Qb6 {[%clk 0:02:56]} 14. Nd1 {[%clk
0:02:54.2]} 14... h4 {[%clk 0:02:51.6]} 15. c3 {[%clk 0:02:54.8]} 15... Bxe3
{[%clk 0:02:49.9]} 16. Nxe3 {[%clk 0:02:55.5]} 16... h3 {[%clk 0:02:51.5]} 17.
g3 {[%clk 0:02:48.9]} 17... f5 {[%clk 0:02:51.9]} 18. Kg1 {[%clk 0:02:48.8]}
18... O-O-O {[%clk 0:02:51.9]} 19. Nc2 {[%clk 0:02:35.3]} 19... c4+ {[%clk
0:02:51.5]} 20. Qe3 {[%clk 0:02:31.3]} 20... Qxe3+ {[%clk 0:02:52.3]} 21. Nxe3
{[%clk 0:02:33.2]} 21... fxe4 {[%clk 0:02:53.7]} 22. dxc4 {[%clk 0:02:32.8]}
22... bxc4 {[%clk 0:02:31.5]} 23. Nxc4 {[%clk 0:02:34.7]} 23... d5 {[%clk
0:02:29.9]} 24. Ne5 {[%clk 0:02:35.2]} 24... Rdg8 {[%clk 0:02:16.3]} 25. Rad1
{[%clk 0:02:32.9]} 25... g5 {[%clk 0:02:13.6]} 26. Nf7 {[%clk 0:02:32.8]} 26...
gxf4 {[%clk 0:02:00]} 27. Nxh8 {[%clk 0:02:32.5]} 27... fxg3 {[%clk 0:01:38.7]}
28. Nf7 {[%clk 0:02:32.1]} 28... e3 {[%clk 0:01:34.1]} 29. Rfe1 {[%clk
0:02:26.4]} 29... Nf5 {[%clk 0:01:31.1]} 30. Bb1 {[%clk 0:02:22.2]} 30... gxh2+
{[%clk 0:01:17.8]} 31. Kxh2 {[%clk 0:02:22.2]} 31... Rg2+ {[%clk 0:00:51.6]} 32.
Kxh3 {[%clk 0:02:22.9]} 32... Rg3+ {[%clk 0:00:50.4]} 33. Kh2 {[%clk 0:02:23.7]}
33... d4 {[%clk 0:00:44.4]} 34. Bxf5 {[%clk 0:02:23.9]} 34... Rg2+ {[%clk
0:00:45]} 35. Kh3 {[%clk 0:02:24.8]} 35... exf5 {[%clk 0:00:46.3]} 36. Nd6+
{[%clk 0:02:25.2]} 36... Kc7 {[%clk 0:00:45.2]} 37. Nxb7 {[%clk 0:02:27.1]}
37... Rxb2 {[%clk 0:00:42.5]} 38. Nc5 {[%clk 0:02:26.9]} 38... e2 {[%clk
0:00:36.1]} 39. Rxd4 {[%clk 0:02:26.5]} 39... Rc2 {[%clk 0:00:34.3]} 40. Ne6+
{[%clk 0:02:26.3]} 40... Kc6 {[%clk 0:00:35.3]} 41. Nf4 {[%clk 0:02:28.2]} 41...
a5 {[%clk 0:00:36.3]} 42. Rxe2 {[%clk 0:02:28.6]} 42... Rxc3+ {[%clk 0:00:37.6]}
43. Rd3 {[%clk 0:02:29.6]} 43... Rc4 {[%clk 0:00:38.7]} 44. Kg3 {[%clk
0:02:29.7]} 44... a4 {[%clk 0:00:40.1]} 45. Kf3 {[%clk 0:02:30.3]} 45... Kc5
{[%clk 0:00:40.2]} 46. Re5+ {[%clk 0:02:30.8]} 46... Kc6 {[%clk 0:00:41.3]} 47.
Rxf5 {[%clk 0:02:32.2]} 47... Rc1 {[%clk 0:00:40.9]} 48. Ne2 {[%clk 0:02:29.8]}
48... Rf1+ {[%clk 0:00:41.9]} 49. Ke4 {[%clk 0:02:31.4]} 49... Re1 {[%clk
0:00:43]} 50. Re3 {[%clk 0:02:33]} 50... Ra1 {[%clk 0:00:44]} 51. Nd4+ {[%clk
0:02:33.7]} 51... Kd6 {[%clk 0:00:45.3]} 52. Rd5+ {[%clk 0:02:34.4]} 52... Kc7
{[%clk 0:00:46.3]} 53. Rc3+ {[%clk 0:02:35.3]} 53... Kb6 {[%clk 0:00:47.7]} 54.
Rb5+ {[%clk 0:02:36.4]} 54... Ka6 {[%clk 0:00:49.6]} 55. Rc6+ {[%clk 0:02:37.3]}
55... Ka7 {[%clk 0:00:51.3]} 56. Rc4 {[%clk 0:02:38.9]} 56... Ka6 {[%clk
0:00:52.7]} 57. Rxa4# {[%clk 0:02:39.5]} 1-0

[Event "*** MasterClass Titled Tuesday Blitz"]
[Site "Chess.com"]
[Date "2017.12.05"]
[Round "1"]
[White "Kaphrep"]
[Black "1random"]
[Result "1-0"]
[WhiteElo "2599"]
[BlackElo "2190"]
[TimeControl "180+2"]
[EndTime "14:22:10 PST"]
[Termination "Kaphrep won by checkmate"]

1. d4 {[%clk 0:03:01.6]} 1... Nf6 {[%clk 0:02:56.3]} 2. Nf3 {[%clk 0:03:02.4]}
2... e6 {[%clk 0:02:57.5]} 3. e3 {[%clk 0:03:02.5]} 3... c5 {[%clk 0:02:57]} 4.
Bd3 {[%clk 0:03:02.9]} 4... b6 {[%clk 0:02:58.4]} 5. O-O {[%clk 0:03:03.6]} 5...
Bb7 {[%clk 0:02:59.3]} 6. Nbd2 {[%clk 0:03:04.6]} 6... Be7 {[%clk 0:02:57.4]} 7.
a4 {[%clk 0:02:59.2]} 7... O-O {[%clk 0:02:49]} 8. Qe2 {[%clk 0:02:53.6]} 8...
d6 {[%clk 0:02:40.1]} 9. c3 {[%clk 0:02:27.6]} 9... cxd4 {[%clk 0:02:33.6]} 10.
exd4 {[%clk 0:02:26.6]} 10... Nbd7 {[%clk 0:02:33.5]} 11. a5 {[%clk 0:02:23.1]}
11... Qc7 {[%clk 0:02:02]} 12. Re1 {[%clk 0:02:12.3]} 12... Bc6 {[%clk
0:01:46.8]} 13. Ng5 {[%clk 0:02:03.3]} 13... h6 {[%clk 0:01:02.7]} 14. Nge4
{[%clk 0:01:43.9]} 14... Nxe4 {[%clk 0:01:00.3]} 15. Nxe4 {[%clk 0:01:45.8]}
15... Nf6 {[%clk 0:01:00.2]} 16. Ng3 {[%clk 0:01:32.3]} 16... bxa5 {[%clk
0:00:43.9]} 17. Nh5 {[%clk 0:01:19.9]} 17... e5 {[%clk 0:00:13.4]} 18. Nxg7
{[%clk 0:00:54.7]} 18... Kxg7 {[%clk 0:00:12.7]} 19. Bxh6+ {[%clk 0:00:56.3]}
19... Kxh6 {[%clk 0:00:12]} 20. Qe3+ {[%clk 0:00:57.7]} 20... Kg7 {[%clk
0:00:08.2]} 21. Qg5+ {[%clk 0:00:58.9]} 21... Kh8 {[%clk 0:00:09.8]} 22. Qh6+
{[%clk 0:00:53.6]} 22... Kg8 {[%clk 0:00:11.1]} 23. Re3 {[%clk 0:00:48.7]} 23...
Ne4 {[%clk 0:00:07.7]} 24. Rg3+ {[%clk 0:00:40.6]} 24... Bg5 {[%clk 0:00:09]}
25. Rxg5+ {[%clk 0:00:41.4]} 25... Nxg5 {[%clk 0:00:09.7]} 26. Qxg5+ {[%clk
0:00:42.4]} 26... Kh8 {[%clk 0:00:11.2]} 27. Qh6+ {[%clk 0:00:42.1]} 27... Kg8
{[%clk 0:00:13.1]} 28. Qh7# {[%clk 0:00:43.6]} 1-0

[Event "*** MasterClass Titled Tuesday Blitz"]
[Site "Chess.com"]
[Date "2017.12.05"]
[Round "1"]
[White "Apocalyps999"]
[Black "DanielNaroditsky"]
[Result "1-0"]
[WhiteElo "2334"]
[BlackElo "2716"]
[TimeControl "180+2"]
[EndTime "14:22:11 PST"]
[Termination "Apocalyps999 won by resignation"]

1. e4 {[%clk 0:02:46.9]} 1... e5 {[%clk 0:03:00.2]} 2. Nf3 {[%clk 0:02:47.2]}
2... Nc6 {[%clk 0:03:01.3]} 3. Bc4 {[%clk 0:02:48.1]} 3... Be7 {[%clk
0:02:59.7]} 4. O-O {[%clk 0:02:46.3]} 4... Nf6 {[%clk 0:03:00.1]} 5. d3 {[%clk
0:02:47.2]} 5... d6 {[%clk 0:03:00.4]} 6. c3 {[%clk 0:02:48.2]} 6... a6 {[%clk
0:02:54.7]} 7. Bb3 {[%clk 0:02:48.2]} 7... O-O {[%clk 0:02:51.9]} 8. Nbd2 {[%clk
0:02:48.7]} 8... Na5 {[%clk 0:02:46]} 9. Bc2 {[%clk 0:02:49.5]} 9... c5 {[%clk
0:02:47.2]} 10. Re1 {[%clk 0:02:50.3]} 10... b5 {[%clk 0:02:47]} 11. Nf1 {[%clk
0:02:51.2]} 11... Nc6 {[%clk 0:02:46.6]} 12. h3 {[%clk 0:02:52]} 12... h6 {[%clk
0:02:47.6]} 13. g4 {[%clk 0:02:51.8]} 13... Be6 {[%clk 0:02:48.9]} 14. Ng3
{[%clk 0:02:52.5]} 14... d5 {[%clk 0:02:48.4]} 15. Qe2 {[%clk 0:02:52.6]} 15...
c4 {[%clk 0:02:49.2]} 16. Nf5 {[%clk 0:02:50.1]} 16... cxd3 {[%clk 0:02:48.4]}
17. Bxd3 {[%clk 0:02:51]} 17... dxe4 {[%clk 0:02:49.3]} 18. Bxe4 {[%clk
0:02:51.7]} 18... Nxe4 {[%clk 0:02:49.7]} 19. Qxe4 {[%clk 0:02:50.3]} 19... Bd5
{[%clk 0:02:51.1]} 20. Qe2 {[%clk 0:02:48.6]} 20... Bf6 {[%clk 0:02:48.5]} 21.
Rd1 {[%clk 0:02:32.5]} 21... Bc4 {[%clk 0:02:46.3]} 22. Qe1 {[%clk 0:02:20.1]}
22... Qc7 {[%clk 0:02:44.8]} 23. Qe4 {[%clk 0:02:19.9]} 23... Rad8 {[%clk
0:02:27.3]} 24. Be3 {[%clk 0:02:07]} 24... Na5 {[%clk 0:02:20.2]} 25. g5 {[%clk
0:01:27.9]} 25... hxg5 {[%clk 0:02:15]} 26. Nxg5 {[%clk 0:01:20.2]} 26... g6
{[%clk 0:02:14.9]} 27. b3 {[%clk 0:01:11.2]} 27... Be6 {[%clk 0:01:30.9]} 28.
Nh6+ {[%clk 0:00:41.5]} 28... Kg7 {[%clk 0:01:30.9]} 29. Nxe6+ {[%clk
0:00:41.8]} 29... fxe6 {[%clk 0:01:31.7]} 30. Ng4 {[%clk 0:00:42.9]} 30... Rh8
{[%clk 0:01:20.8]} 31. Rxd8 {[%clk 0:00:25.9]} 31... Rxd8 {[%clk 0:01:20.1]} 32.
Bh6+ {[%clk 0:00:24.2]} 32... Kh7 {[%clk 0:01:16.1]} 33. Nxf6+ {[%clk 0:00:23]}
33... Kxh6 {[%clk 0:01:16.5]} 34. Qh4+ {[%clk 0:00:23.8]} 34... Kg7 {[%clk
0:01:18]} 35. Qh7+ {[%clk 0:00:25.4]} 35... Kxf6 {[%clk 0:01:17.1]} 36. Qxc7
{[%clk 0:00:27.3]} 36... Rd3 {[%clk 0:01:17.8]} 37. Qxa5 {[%clk 0:00:28.2]} 1-0